[Event "Titled Tuesday Blitz August 16 Early 2022"]
[White "Vusatiuk, Vladimir"]
[Black "Fawzy, Adham"]
[WhiteFideId "14118610"]
[BlackFideId "10613129"]
[WhiteElo "2157"]
[BlackElo "2541"]
[Result "0-1"]
[Round "02"]
[TimeControl "180+2"]
[Date "2022.08.18"]
[WhiteClock "0:00:00"]
[BlackClock "0:00:00"]

1. d4 {[%clk 0:00:00]}  Nf6 {[%clk 0:00:00]} 2. c4 {[%clk 0:00:00]}  g6 {[%clk 0:00:00]} 3. Nc3 {[%clk 0:00:00]}  d5 {[%clk 0:00:00]} 4. cxd5 {[%clk 0:00:00]}  Nxd5 {[%clk 0:00:00]} 5. e4 {[%clk 0:00:00]}  Nxc3 {[%clk 0:00:00]} 6. bxc3 {[%clk 0:00:00]}  Bg7 {[%clk 0:00:00]} 7. Bc4 {[%clk 0:00:00]}  c5 {[%clk 0:00:00]} 8. Ne2 {[%clk 0:00:00]}  Nc6 {[%clk 0:00:00]} 9. Be3 {[%clk 0:00:00]}  O-O {[%clk 0:00:00]} 10. O-O {[%clk 0:00:00]}  Bg4 {[%clk 0:00:00]} 11. f3 {[%clk 0:00:00]}  Na5 {[%clk 0:00:00]} 12. Bb5 {[%clk 0:00:00]}  Bd7 {[%clk 0:00:00]} 13. Qa4 {[%clk 0:00:00]}  Bxb5 {[%clk 0:00:00]} 14. Qxb5 {[%clk 0:00:00]}  cxd4 {[%clk 0:00:00]} 15. cxd4 {[%clk 0:00:00]}  a6 {[%clk 0:00:00]} 16. Qd3 {[%clk 0:00:00]}  b5 {[%clk 0:00:00]} 17. a4 {[%clk 0:00:00]}  Nc4 {[%clk 0:00:00]} 18. axb5 {[%clk 0:00:00]}  axb5 {[%clk 0:00:00]} 19. Bf2 {[%clk 0:00:00]}  Qd7 {[%clk 0:00:00]} 20. Rfb1 {[%clk 0:00:00]}  Rab8 {[%clk 0:00:00]} 21. Nc3 {[%clk 0:00:00]}  Rfc8 {[%clk 0:00:00]} 22. Rb3 {[%clk 0:00:00]}  b4 {[%clk 0:00:00]} 23. Nd5 {[%clk 0:00:00]}  e6 {[%clk 0:00:00]} 24. Nxb4 {[%clk 0:00:00]}  Ne5 {[%clk 0:00:00]} 25. dxe5 {[%clk 0:00:00]}  Qxd3 {[%clk 0:00:00]} 26. Rxd3 {[%clk 0:00:00]}  Rxb4 {[%clk 0:00:00]} 27. Bg3 {[%clk 0:00:00]}  h5 {[%clk 0:00:00]} 28. Rd2 {[%clk 0:00:00]}  Rb5 {[%clk 0:00:00]} 29. Ra7 {[%clk 0:00:00]}  Bh6 {[%clk 0:00:00]} 30. f4 {[%clk 0:00:00]}  Rb4 {[%clk 0:00:00]} 31. Rdd7 {[%clk 0:00:00]}  Rb2 {[%clk 0:00:00]} 32. h3 {[%clk 0:00:00]}  Rcc2 {[%clk 0:00:00]} 33. Kh1 {[%clk 0:00:00]}  Rxg2 {[%clk 0:00:00]} 34. Rxf7 {[%clk 0:00:00]}  Rxg3 {[%clk 0:00:00]} 35. Rf6 {[%clk 0:00:00]}  Rxh3+ {[%clk 0:00:00]} 36. Kg1 {[%clk 0:00:00]}  Rg3+ {[%clk 0:00:00]} 37. Kh1 {[%clk 0:00:00]}  Rb8 {[%clk 0:00:00]} 38. Ra6 {[%clk 0:00:00]}  Rf8 {[%clk 0:00:00]} 39. Raxe6 {[%clk 0:00:00]}  Rxf6 {[%clk 0:00:00]} 40. Rxf6 {[%clk 0:00:00]}  Bg7 {[%clk 0:00:00]} 41. Ra6 {[%clk 0:00:00]}  Rg4 {[%clk 0:00:00]} 42. e6 {[%clk 0:00:00]}  Bf8 {[%clk 0:00:00]} 43. f5 {[%clk 0:00:00]}  g5 {[%clk 0:00:00]} 44. f6 {[%clk 0:00:00]}  Rxe4 {[%clk 0:00:00]} 45. e7 {[%clk 0:00:00]}  Bxe7 {[%clk 0:00:00]} 46. fxe7 {[%clk 0:00:00]}  Rxe7 {[%clk 0:00:00]} 47. Rh6 {[%clk 0:00:00]}  h4 {[%clk 0:00:00]} 48. Rg6+ {[%clk 0:00:00]}  Rg7 {[%clk 0:00:00]} 49. Ra6 {[%clk 0:00:00]}  Kh7 {[%clk 0:00:00]} 50. Kh2 {[%clk 0:00:00]}  Rg6 {[%clk 0:00:00]} 51. Ra7+ {[%clk 0:00:00]}  Kh6 {[%clk 0:00:00]} 52. Ra8 {[%clk 0:00:00]}  Kh5 {[%clk 0:00:00]} 53. Rh8+ {[%clk 0:00:00]}  Kg4 {[%clk 0:00:00]} 54. Ra8 {[%clk 0:00:00]}  Rf6 {[%clk 0:00:00]} 55. Kg2 {[%clk 0:00:00]}  Rf4 {[%clk 0:00:00]} 56. Rg8 {[%clk 0:00:00]}  Re4 {[%clk 0:00:00]} 57. Kf2 {[%clk 0:00:00]}  Ra4 {[%clk 0:00:00]} 58. Rg7 {[%clk 0:00:00]}  Ra2+ {[%clk 0:00:00]} 59. Kg1 {[%clk 0:00:00]}  h3 {[%clk 0:00:00]} 60. Kh1 {[%clk 0:00:00]}  Kh4 {[%clk 0:00:00]} 61. Rg8 {[%clk 0:00:00]}  g4 {[%clk 0:00:00]} 62. Rb8 {[%clk 0:00:00]}  Ra1+ {[%clk 0:00:00]} 63. Rb1 {[%clk 0:00:00]}  Rxb1+ {[%clk 0:00:00]} 0-1


[Site "https://www.chess.com"]

[Event "Titled Tuesday Blitz August 16 Early 2022"]
[White "Wernberg, Hugo"]
[Black "Malka, Samuel"]
[WhiteFideId "1737511"]
[BlackFideId "20643675"]
[WhiteElo "1962"]
[BlackElo "2185"]
[Result "0-1"]
[Round "02"]
[TimeControl "180+2"]
[Date "2022.08.18"]
[WhiteClock "0:00:00"]
[BlackClock "0:00:00"]

1. d4 {[%clk 0:00:00]}  Nf6 {[%clk 0:00:00]} 2. Nf3 {[%clk 0:00:00]}  g6 {[%clk 0:00:00]} 3. g3 {[%clk 0:00:00]}  Bg7 {[%clk 0:00:00]} 4. Bg2 {[%clk 0:00:00]}  O-O {[%clk 0:00:00]} 5. O-O {[%clk 0:00:00]}  d6 {[%clk 0:00:00]} 6. c4 {[%clk 0:00:00]}  Nc6 {[%clk 0:00:00]} 7. Nc3 {[%clk 0:00:00]}  e5 {[%clk 0:00:00]} 8. d5 {[%clk 0:00:00]}  Nb8 {[%clk 0:00:00]} 9. e4 {[%clk 0:00:00]}  a5 {[%clk 0:00:00]} 10. h3 {[%clk 0:00:00]}  Na6 {[%clk 0:00:00]} 11. Bg5 {[%clk 0:00:00]}  Qe8 {[%clk 0:00:00]} 12. Qc1 {[%clk 0:00:00]}  Nc5 {[%clk 0:00:00]} 13. Ne1 {[%clk 0:00:00]}  h5 {[%clk 0:00:00]} 14. Bh6 {[%clk 0:00:00]}  Nh7 {[%clk 0:00:00]} 15. Bxg7 {[%clk 0:00:00]}  Kxg7 {[%clk 0:00:00]} 16. f4 {[%clk 0:00:00]}  f5 {[%clk 0:00:00]} 17. fxe5 {[%clk 0:00:00]}  Qxe5 {[%clk 0:00:00]} 18. Qf4 {[%clk 0:00:00]}  Qxf4 {[%clk 0:00:00]} 19. Rxf4 {[%clk 0:00:00]}  Ng5 {[%clk 0:00:00]} 20. h4 {[%clk 0:00:00]}  Nf7 {[%clk 0:00:00]} 21. Bh3 {[%clk 0:00:00]}  Ne5 {[%clk 0:00:00]} 22. exf5 {[%clk 0:00:00]}  Bxf5 {[%clk 0:00:00]} 23. Bxf5 {[%clk 0:00:00]}  Rxf5 {[%clk 0:00:00]} 24. Rxf5 {[%clk 0:00:00]}  gxf5 {[%clk 0:00:00]} 25. b3 {[%clk 0:00:00]}  Kf6 {[%clk 0:00:00]} 26. Kh2 {[%clk 0:00:00]}  Rg8 {[%clk 0:00:00]} 27. Rd1 {[%clk 0:00:00]}  Rg4 {[%clk 0:00:00]} 28. Ne2 {[%clk 0:00:00]}  Ne4 {[%clk 0:00:00]} 29. Nf4 {[%clk 0:00:00]}  Nxg3 {[%clk 0:00:00]} 30. Neg2 {[%clk 0:00:00]}  Ng6 {[%clk 0:00:00]} 31. Nxg6 {[%clk 0:00:00]}  Kxg6 {[%clk 0:00:00]} 32. Kh3 {[%clk 0:00:00]}  f4 {[%clk 0:00:00]} 0-1


[Site "https://www.chess.com"]

[Event "Titled Tuesday Blitz August 16 Early 2022"]
[White "Winkels, Marcel"]
[Black "Papayan, Oleg"]
[WhiteFideId "1003887"]
[BlackFideId "4193911"]
[WhiteElo "1900"]
[BlackElo "2038"]
[Result "0-1"]
[Round "02"]
[TimeControl "180+2"]
[Date "2022.08.18"]
[WhiteClock "0:00:00"]
[BlackClock "0:00:00"]

1. e4 {[%clk 0:00:00]}  e5 {[%clk 0:00:00]} 2. Nf3 {[%clk 0:00:00]}  Nc6 {[%clk 0:00:00]} 3. Bc4 {[%clk 0:00:00]}  Bc5 {[%clk 0:00:00]} 4. c3 {[%clk 0:00:00]}  Nf6 {[%clk 0:00:00]} 5. d4 {[%clk 0:00:00]}  exd4 {[%clk 0:00:00]} 6. b4 {[%clk 0:00:00]}  Bb6 {[%clk 0:00:00]} 7. e5 {[%clk 0:00:00]}  d5 {[%clk 0:00:00]} 8. exf6 {[%clk 0:00:00]}  dxc4 {[%clk 0:00:00]} 9. b5 {[%clk 0:00:00]}  Na5 {[%clk 0:00:00]} 10. Qe2+ {[%clk 0:00:00]}  Be6 {[%clk 0:00:00]} 11. fxg7 {[%clk 0:00:00]}  Rg8 {[%clk 0:00:00]} 12. O-O {[%clk 0:00:00]}  d3 {[%clk 0:00:00]} 13. Qe4 {[%clk 0:00:00]}  Qf6 {[%clk 0:00:00]} 14. Bg5 {[%clk 0:00:00]}  Qxg7 {[%clk 0:00:00]} 15. Nbd2 {[%clk 0:00:00]}  h6 {[%clk 0:00:00]} 16. h4 {[%clk 0:00:00]}  hxg5 {[%clk 0:00:00]} 17. hxg5 {[%clk 0:00:00]}  O-O-O {[%clk 0:00:00]} 18. Qf4 {[%clk 0:00:00]}  Rh8 {[%clk 0:00:00]} 19. Rfe1 {[%clk 0:00:00]}  Qh7 {[%clk 0:00:00]} 20. Nh2 {[%clk 0:00:00]}  c6 {[%clk 0:00:00]} 21. bxc6 {[%clk 0:00:00]}  Bc7 {[%clk 0:00:00]} 0-1


[Site "https://www.chess.com"]

[Event "Titled Tuesday Blitz August 16 Early 2022"]
[White "Zemlyanskii, Ivan"]
[Black "Zaksaite, Salomeja"]
[WhiteFideId "24249971"]
[BlackFideId "12801496"]
[WhiteElo "1879"]
[BlackElo "1953"]
[Result "1-0"]
[Round "02"]
[TimeControl "180+2"]
[Date "2022.08.18"]
[WhiteClock "0:00:00"]
[BlackClock "0:00:00"]

1. d4 {[%clk 0:00:00]}  Nf6 {[%clk 0:00:00]} 2. c4 {[%clk 0:00:00]}  g6 {[%clk 0:00:00]} 3. Nf3 {[%clk 0:00:00]}  Bg7 {[%clk 0:00:00]} 4. Nc3 {[%clk 0:00:00]}  d6 {[%clk 0:00:00]} 5. e4 {[%clk 0:00:00]}  O-O {[%clk 0:00:00]} 6. Be2 {[%clk 0:00:00]}  e5 {[%clk 0:00:00]} 7. O-O {[%clk 0:00:00]}  exd4 {[%clk 0:00:00]} 8. Nxd4 {[%clk 0:00:00]}  Re8 {[%clk 0:00:00]} 9. f3 {[%clk 0:00:00]}  Nc6 {[%clk 0:00:00]} 10. Be3 {[%clk 0:00:00]}  Bd7 {[%clk 0:00:00]} 11. Qd2 {[%clk 0:00:00]}  Nxd4 {[%clk 0:00:00]} 12. Bxd4 {[%clk 0:00:00]}  Nh5 {[%clk 0:00:00]} 13. Bxg7 {[%clk 0:00:00]}  Nxg7 {[%clk 0:00:00]} 14. Rfd1 {[%clk 0:00:00]}  Kh8 {[%clk 0:00:00]} 15. c5 {[%clk 0:00:00]}  f5 {[%clk 0:00:00]} 16. cxd6 {[%clk 0:00:00]}  cxd6 {[%clk 0:00:00]} 17. Qxd6 {[%clk 0:00:00]}  Bc6 {[%clk 0:00:00]} 18. Qxd8 {[%clk 0:00:00]}  Raxd8 {[%clk 0:00:00]} 19. Rxd8 {[%clk 0:00:00]}  Rxd8 {[%clk 0:00:00]} 20. Rd1 {[%clk 0:00:00]}  Re8 {[%clk 0:00:00]} 21. Bd3 {[%clk 0:00:00]}  fxe4 {[%clk 0:00:00]} 22. Bxe4 {[%clk 0:00:00]}  Bxe4 {[%clk 0:00:00]} 23. Nxe4 {[%clk 0:00:00]}  Nf5 {[%clk 0:00:00]} 24. Rd7 {[%clk 0:00:00]}  Re7 {[%clk 0:00:00]} 25. Rxe7 {[%clk 0:00:00]}  Nxe7 {[%clk 0:00:00]} 26. Kf2 {[%clk 0:00:00]}  Kg7 {[%clk 0:00:00]} 27. Nd6 {[%clk 0:00:00]}  b6 {[%clk 0:00:00]} 28. Ke3 {[%clk 0:00:00]}  Kf6 {[%clk 0:00:00]} 29. Nb5 {[%clk 0:00:00]}  a6 {[%clk 0:00:00]} 30. Nc7 {[%clk 0:00:00]}  a5 {[%clk 0:00:00]} 31. Ke4 {[%clk 0:00:00]}  h5 {[%clk 0:00:00]} 32. f4 {[%clk 0:00:00]}  Nf5 {[%clk 0:00:00]} 33. Nd5+ {[%clk 0:00:00]}  Ke6 {[%clk 0:00:00]} 34. Nxb6 {[%clk 0:00:00]}  Nh4 {[%clk 0:00:00]} 35. g3 {[%clk 0:00:00]}  Ng2 {[%clk 0:00:00]} 36. Nc4 {[%clk 0:00:00]}  a4 {[%clk 0:00:00]} 37. b4 {[%clk 0:00:00]} 1-0


[Site "https://www.chess.com"]

[Event "Titled Tuesday Blitz August 16 Early 2022"]
[White "Zherebtsova, Alexandra"]
[Black "Djokic, Mihailo"]
[WhiteFideId "24129518"]
[BlackFideId "976440"]
[WhiteElo "2025"]
[BlackElo "2246"]
[Result "0-1"]
[Round "02"]
[TimeControl "180+2"]
[Date "2022.08.18"]
[WhiteClock "0:00:00"]
[BlackClock "0:00:00"]

1. d4 {[%clk 0:00:00]}  Nf6 {[%clk 0:00:00]} 2. Nf3 {[%clk 0:00:00]}  g6 {[%clk 0:00:00]} 3. c4 {[%clk 0:00:00]}  Bg7 {[%clk 0:00:00]} 4. Nc3 {[%clk 0:00:00]}  O-O {[%clk 0:00:00]} 5. e4 {[%clk 0:00:00]}  d6 {[%clk 0:00:00]} 6. h3 {[%clk 0:00:00]}  e5 {[%clk 0:00:00]} 7. d5 {[%clk 0:00:00]}  a5 {[%clk 0:00:00]} 8. g4 {[%clk 0:00:00]}  Na6 {[%clk 0:00:00]} 9. Be3 {[%clk 0:00:00]}  Nc5 {[%clk 0:00:00]} 10. Nd2 {[%clk 0:00:00]}  c6 {[%clk 0:00:00]} 11. Qc2 {[%clk 0:00:00]}  Bd7 {[%clk 0:00:00]} 12. O-O-O {[%clk 0:00:00]}  cxd5 {[%clk 0:00:00]} 13. cxd5 {[%clk 0:00:00]}  a4 {[%clk 0:00:00]} 14. Kb1 {[%clk 0:00:00]}  Qb8 {[%clk 0:00:00]} 15. Bxc5 {[%clk 0:00:00]}  dxc5 {[%clk 0:00:00]} 16. Bb5 {[%clk 0:00:00]}  a3 {[%clk 0:00:00]} 17. b3 {[%clk 0:00:00]}  Rd8 {[%clk 0:00:00]} 18. Qd3 {[%clk 0:00:00]}  h5 {[%clk 0:00:00]} 19. g5 {[%clk 0:00:00]}  Ne8 {[%clk 0:00:00]} 20. Nc4 {[%clk 0:00:00]}  b6 {[%clk 0:00:00]} 21. f3 {[%clk 0:00:00]}  Nd6 {[%clk 0:00:00]} 22. Bxd7 {[%clk 0:00:00]}  Rxd7 {[%clk 0:00:00]} 23. Nxd6 {[%clk 0:00:00]}  Qxd6 {[%clk 0:00:00]} 24. Nb5 {[%clk 0:00:00]}  Qe7 {[%clk 0:00:00]} 25. d6 {[%clk 0:00:00]}  Qxg5 {[%clk 0:00:00]} 26. Qd5 {[%clk 0:00:00]}  Rad8 {[%clk 0:00:00]} 27. Qc6 {[%clk 0:00:00]}  Qg2 {[%clk 0:00:00]} 0-1


[Site "https://www.chess.com"]

[Event "Titled Tuesday Blitz August 16 Early 2022"]
[White "Zhigalko, Sergei"]
[Black "Brodowski, Piotr"]
[WhiteFideId "13502956"]
[BlackFideId "1124480"]
[WhiteElo "2662"]
[BlackElo "2312"]
[Result "1-0"]
[Round "02"]
[TimeControl "180+1"]
[Date "2022.08.16"]
[WhiteClock "0:00:05"]
[BlackClock "0:00:02"]

1. e4 {[%clk 0:03:00]}  g6 {[%clk 0:02:57]} 2. d4 {[%clk 0:03:00]}  Bg7 {[%clk 0:02:58]} 3. Nc3 {[%clk 0:03:01]}  a6 {[%clk 0:02:58]} 4. Nf3 {[%clk 0:03:01]}  d6 {[%clk 0:02:58]} 5. Be3 {[%clk 0:03:00]}  b5 {[%clk 0:02:58]} 6. a4 {[%clk 0:03:01]}  b4 {[%clk 0:02:58]} 7. Ne2 {[%clk 0:03:01]}  Bb7 {[%clk 0:02:57]} 8. Ng3 {[%clk 0:03:01]}  Nd7 {[%clk 0:02:56]} 9. a5 {[%clk 0:03:01]}  c5 {[%clk 0:02:51]} 10. c3 {[%clk 0:03:01]}  bxc3 {[%clk 0:02:51]} 11. bxc3 {[%clk 0:03:01]}  Ngf6 {[%clk 0:02:48]} 12. Bd3 {[%clk 0:03:01]}  O-O {[%clk 0:02:46]} 13. O-O {[%clk 0:03:01]}  Qc7 {[%clk 0:02:30]} 14. h3 {[%clk 0:03:00]}  d5 {[%clk 0:02:12]} 15. e5 {[%clk 0:02:59]}  Ne4 {[%clk 0:02:12]} 16. Bxe4 {[%clk 0:02:56]}  dxe4 {[%clk 0:02:11]} 17. Ng5 {[%clk 0:02:57]}  cxd4 {[%clk 0:02:02]} 18. cxd4 {[%clk 0:02:56]}  Bd5 {[%clk 0:01:32]} 19. N5xe4 {[%clk 0:02:18]}  f5 {[%clk 0:01:29]} 20. exf6 {[%clk 0:01:49]}  exf6 {[%clk 0:01:30]} 21. Qa4 {[%clk 0:01:38]}  f5 {[%clk 0:00:36]} 22. Rac1 {[%clk 0:01:33]}  Qa7 {[%clk 0:00:33]} 23. Nc3 {[%clk 0:01:32]}  Nf6 {[%clk 0:00:28]} 24. Nxd5 {[%clk 0:00:59]}  Nxd5 {[%clk 0:00:29]} 25. Rc5 {[%clk 0:01:00]}  Rad8 {[%clk 0:00:26]} 26. Qc4 {[%clk 0:01:00]}  Qf7 {[%clk 0:00:26]} 27. Bg5 {[%clk 0:00:28]}  Rd7 {[%clk 0:00:26]} 28. Re1 {[%clk 0:00:27]}  f4 {[%clk 0:00:22]} 29. Ne4 {[%clk 0:00:26]}  h6 {[%clk 0:00:22]} 30. Bh4 {[%clk 0:00:15]}  g5 {[%clk 0:00:22]} 31. Bxg5 {[%clk 0:00:16]}  hxg5 {[%clk 0:00:22]} 32. Nxg5 {[%clk 0:00:17]}  Qf5 {[%clk 0:00:22]} 33. Nf3 {[%clk 0:00:13]}  Qf7 {[%clk 0:00:18]} 34. Ng5 {[%clk 0:00:11]}  Qf5 {[%clk 0:00:18]} 35. Nf3 {[%clk 0:00:11]}  Qf7 {[%clk 0:00:18]} 36. Qxa6 {[%clk 0:00:12]}  Nf6 {[%clk 0:00:10]} 37. Ne5 {[%clk 0:00:10]}  Qe8 {[%clk 0:00:04]} 38. Qc4+ {[%clk 0:00:10]}  Kh8 {[%clk 0:00:02]} 39. a6 {[%clk 0:00:04]}  Re7 {[%clk 0:00:02]} 40. Rc6 {[%clk 0:00:05]} 1-0


[Site "https://www.chess.com"]

[Event "Titled Tuesday Blitz August 16 Early 2022"]
[White "Ziatdinov, Raset"]
[Black "Bodnar, Nikolay"]
[WhiteFideId "2015323"]
[BlackFideId "14106469"]
[WhiteElo "2220"]
[BlackElo "2283"]
[Result "0-1"]
[Round "02"]
[TimeControl "180+2"]
[Date "2022.08.18"]
[WhiteClock "0:00:00"]
[BlackClock "0:00:00"]

1. e4 {[%clk 0:00:00]}  c6 {[%clk 0:00:00]} 2. d4 {[%clk 0:00:00]}  d5 {[%clk 0:00:00]} 3. Nc3 {[%clk 0:00:00]}  dxe4 {[%clk 0:00:00]} 4. Nxe4 {[%clk 0:00:00]}  Bf5 {[%clk 0:00:00]} 5. Ng3 {[%clk 0:00:00]}  Bg6 {[%clk 0:00:00]} 6. h4 {[%clk 0:00:00]}  h6 {[%clk 0:00:00]} 7. h5 {[%clk 0:00:00]}  Bh7 {[%clk 0:00:00]} 8. Bd3 {[%clk 0:00:00]}  Bxd3 {[%clk 0:00:00]} 9. Qxd3 {[%clk 0:00:00]}  e6 {[%clk 0:00:00]} 10. Nf3 {[%clk 0:00:00]}  Nf6 {[%clk 0:00:00]} 11. Bd2 {[%clk 0:00:00]}  Be7 {[%clk 0:00:00]} 12. O-O-O {[%clk 0:00:00]}  Nbd7 {[%clk 0:00:00]} 13. Ne4 {[%clk 0:00:00]}  Nxe4 {[%clk 0:00:00]} 14. Qxe4 {[%clk 0:00:00]}  Nf6 {[%clk 0:00:00]} 15. Qe2 {[%clk 0:00:00]}  Qd5 {[%clk 0:00:00]} 16. Ne5 {[%clk 0:00:00]}  Qxa2 {[%clk 0:00:00]} 17. c4 {[%clk 0:00:00]}  a5 {[%clk 0:00:00]} 18. Kc2 {[%clk 0:00:00]}  Qa4+ {[%clk 0:00:00]} 19. Kb1 {[%clk 0:00:00]}  Rd8 {[%clk 0:00:00]} 20. Bc1 {[%clk 0:00:00]}  Nd7 {[%clk 0:00:00]} 21. f4 {[%clk 0:00:00]}  O-O {[%clk 0:00:00]} 22. g4 {[%clk 0:00:00]}  Nxe5 {[%clk 0:00:00]} 23. dxe5 {[%clk 0:00:00]}  Rxd1 {[%clk 0:00:00]} 24. Rxd1 {[%clk 0:00:00]}  Rd8 {[%clk 0:00:00]} 25. Rxd8+ {[%clk 0:00:00]}  Bxd8 {[%clk 0:00:00]} 26. Qd3 {[%clk 0:00:00]}  Bh4 {[%clk 0:00:00]} 27. Qd7 {[%clk 0:00:00]}  Qxc4 {[%clk 0:00:00]} 28. Qxb7 {[%clk 0:00:00]}  Qe4+ {[%clk 0:00:00]} 29. Ka2 {[%clk 0:00:00]}  Qa4+ {[%clk 0:00:00]} 30. Kb1 {[%clk 0:00:00]}  Qe4+ {[%clk 0:00:00]} 31. Ka2 {[%clk 0:00:00]}  Qc2 {[%clk 0:00:00]} 32. g5 {[%clk 0:00:00]}  Qxc1 {[%clk 0:00:00]} 33. Qc8+ {[%clk 0:00:00]}  Kh7 {[%clk 0:00:00]} 34. g6+ {[%clk 0:00:00]}  fxg6 {[%clk 0:00:00]} 35. hxg6+ {[%clk 0:00:00]}  Kxg6 {[%clk 0:00:00]} 36. Qxe6+ {[%clk 0:00:00]}  Kh5 {[%clk 0:00:00]} 37. Qf7+ {[%clk 0:00:00]}  Kg4 {[%clk 0:00:00]} 38. Qxg7+ {[%clk 0:00:00]}  Kxf4 {[%clk 0:00:00]} 39. Qxh6+ {[%clk 0:00:00]}  Bg5 {[%clk 0:00:00]} 40. Qf8+ {[%clk 0:00:00]}  Kxe5 {[%clk 0:00:00]} 41. Qe8+ {[%clk 0:00:00]}  Kf5 {[%clk 0:00:00]} 42. Qd7+ {[%clk 0:00:00]}  Kg6 {[%clk 0:00:00]} 43. Qd3+ {[%clk 0:00:00]}  Kh5 {[%clk 0:00:00]} 44. Qh7+ {[%clk 0:00:00]}  Kg4 {[%clk 0:00:00]} 45. Qe4+ {[%clk 0:00:00]}  Kg3 {[%clk 0:00:00]} 46. Qe5+ {[%clk 0:00:00]}  Bf4 {[%clk 0:00:00]} 47. Qxa5 {[%clk 0:00:00]}  Kf3 {[%clk 0:00:00]} 48. Qa3+ {[%clk 0:00:00]}  Ke4 {[%clk 0:00:00]} 49. Qe7+ {[%clk 0:00:00]}  Kd5 {[%clk 0:00:00]} 50. Qd7+ {[%clk 0:00:00]}  Kc5 {[%clk 0:00:00]} 51. Qe7+ {[%clk 0:00:00]}  Kb5 {[%clk 0:00:00]} 52. Qb7+ {[%clk 0:00:00]}  Kc5 {[%clk 0:00:00]} 53. Qe7+ {[%clk 0:00:00]}  Bd6 {[%clk 0:00:00]} 54. Qa7+ {[%clk 0:00:00]}  Kd5 {[%clk 0:00:00]} 55. Qf7+ {[%clk 0:00:00]}  Ke5 {[%clk 0:00:00]} 56. Qg7+ {[%clk 0:00:00]}  Ke6 {[%clk 0:00:00]} 57. Qg6+ {[%clk 0:00:00]}  Kd7 {[%clk 0:00:00]} 58. Qf7+ {[%clk 0:00:00]}  Be7 {[%clk 0:00:00]} 59. Qf5+ {[%clk 0:00:00]}  Kd8 {[%clk 0:00:00]} 60. Qa5+ {[%clk 0:00:00]}  Ke8 {[%clk 0:00:00]} 61. Qa8+ {[%clk 0:00:00]}  Kf7 {[%clk 0:00:00]} 62. Qa6 {[%clk 0:00:00]}  Qc5 {[%clk 0:00:00]} 63. Qf1+ {[%clk 0:00:00]}  Ke8 {[%clk 0:00:00]} 64. Qh3 {[%clk 0:00:00]}  Qd5+ {[%clk 0:00:00]} 65. Kb1 {[%clk 0:00:00]}  Kd8 {[%clk 0:00:00]} 66. Qh8+ {[%clk 0:00:00]}  Kc7 {[%clk 0:00:00]} 67. Qh2+ {[%clk 0:00:00]}  Qd6 {[%clk 0:00:00]} 68. Qh7 {[%clk 0:00:00]}  c5 {[%clk 0:00:00]} 69. Qc2 {[%clk 0:00:00]}  Qc6 {[%clk 0:00:00]} 70. Qc4 {[%clk 0:00:00]}  Bd6 {[%clk 0:00:00]} 71. Qf7+ {[%clk 0:00:00]}  Kb6 {[%clk 0:00:00]} 72. Qf1 {[%clk 0:00:00]}  Qb5 {[%clk 0:00:00]} 73. Qf6 {[%clk 0:00:00]}  Qd3+ {[%clk 0:00:00]} 74. Ka2 {[%clk 0:00:00]}  Qd5+ {[%clk 0:00:00]} 75. Kb1 {[%clk 0:00:00]}  Qd1+ {[%clk 0:00:00]} 76. Ka2 {[%clk 0:00:00]}  Qd5+ {[%clk 0:00:00]} 77. Kb1 {[%clk 0:00:00]}  c4 {[%clk 0:00:00]} 78. Qd8+ {[%clk 0:00:00]}  Kb5 {[%clk 0:00:00]} 79. Qd7+ {[%clk 0:00:00]}  Kb4 {[%clk 0:00:00]} 80. Qh3 {[%clk 0:00:00]}  Qd3+ {[%clk 0:00:00]} 81. Ka1 {[%clk 0:00:00]}  Qxh3 {[%clk 0:00:00]} 0-1


[Site "https://www.chess.com"]

[Event "Titled Tuesday Blitz August 16 Early 2022"]
[White "Acosta Cruz, Oscar Yosimar"]
[Black "Proudian, Armen"]
[WhiteFideId "5111269"]
[BlackFideId "2130734"]
[WhiteElo "2147"]
[BlackElo "2380"]
[Result "1-0"]
[Round "03"]
[TimeControl "180+2"]
[Date "2022.08.18"]
[WhiteClock "0:00:00"]
[BlackClock "0:00:00"]

1. b3 {[%clk 0:00:00]}  e5 {[%clk 0:00:00]} 2. Bb2 {[%clk 0:00:00]}  Nc6 {[%clk 0:00:00]} 3. e3 {[%clk 0:00:00]}  a6 {[%clk 0:00:00]} 4. c4 {[%clk 0:00:00]}  Nf6 {[%clk 0:00:00]} 5. Be2 {[%clk 0:00:00]}  d5 {[%clk 0:00:00]} 6. cxd5 {[%clk 0:00:00]}  Nxd5 {[%clk 0:00:00]} 7. Nf3 {[%clk 0:00:00]}  Bd6 {[%clk 0:00:00]} 8. O-O {[%clk 0:00:00]}  O-O {[%clk 0:00:00]} 9. d4 {[%clk 0:00:00]}  e4 {[%clk 0:00:00]} 10. Ne5 {[%clk 0:00:00]}  Bxe5 {[%clk 0:00:00]} 11. dxe5 {[%clk 0:00:00]}  Be6 {[%clk 0:00:00]} 12. Nd2 {[%clk 0:00:00]}  Qh4 {[%clk 0:00:00]} 13. g3 {[%clk 0:00:00]}  Qe7 {[%clk 0:00:00]} 14. Nxe4 {[%clk 0:00:00]}  Rad8 {[%clk 0:00:00]} 15. Qc2 {[%clk 0:00:00]}  Bh3 {[%clk 0:00:00]} 16. Rfd1 {[%clk 0:00:00]}  Nxe5 {[%clk 0:00:00]} 17. Qc5 {[%clk 0:00:00]}  Rfe8 {[%clk 0:00:00]} 18. Rxd5 {[%clk 0:00:00]}  Rxd5 {[%clk 0:00:00]} 19. Qxd5 {[%clk 0:00:00]}  Ng4 {[%clk 0:00:00]} 20. Ng5 {[%clk 0:00:00]}  Nxe3 {[%clk 0:00:00]} 21. fxe3 {[%clk 0:00:00]}  Qxe3+ {[%clk 0:00:00]} 22. Kh1 {[%clk 0:00:00]}  Be6 {[%clk 0:00:00]} 23. Nxe6 {[%clk 0:00:00]}  Qxe2 {[%clk 0:00:00]} 24. Qd4 {[%clk 0:00:00]}  f6 {[%clk 0:00:00]} 25. Nf4 {[%clk 0:00:00]}  Qf3+ {[%clk 0:00:00]} 26. Kg1 {[%clk 0:00:00]}  h5 {[%clk 0:00:00]} 27. Rf1 {[%clk 0:00:00]}  Qe3+ {[%clk 0:00:00]} 28. Qxe3 {[%clk 0:00:00]}  Rxe3 {[%clk 0:00:00]} 29. Kf2 {[%clk 0:00:00]}  Re4 {[%clk 0:00:00]} 30. Re1 {[%clk 0:00:00]}  Rb4 {[%clk 0:00:00]} 31. Nxh5 {[%clk 0:00:00]}  Rb5 {[%clk 0:00:00]} 32. Nf4 {[%clk 0:00:00]}  Ra5 {[%clk 0:00:00]} 33. a4 {[%clk 0:00:00]}  Rf5 {[%clk 0:00:00]} 34. Re8+ {[%clk 0:00:00]}  Kf7 {[%clk 0:00:00]} 35. Rc8 {[%clk 0:00:00]}  g5 {[%clk 0:00:00]} 36. Rxc7+ {[%clk 0:00:00]}  Ke8 {[%clk 0:00:00]} 37. Rxb7 {[%clk 0:00:00]}  gxf4 {[%clk 0:00:00]} 38. gxf4 {[%clk 0:00:00]}  Rxf4+ {[%clk 0:00:00]} 39. Kg2 {[%clk 0:00:00]}  Rg4+ {[%clk 0:00:00]} 40. Kf2 {[%clk 0:00:00]}  Rf4+ {[%clk 0:00:00]} 41. Kg3 {[%clk 0:00:00]}  Re4 {[%clk 0:00:00]} 42. Bxf6 {[%clk 0:00:00]}  Re6 {[%clk 0:00:00]} 43. Bg5 {[%clk 0:00:00]}  Rg6 {[%clk 0:00:00]} 44. h4 {[%clk 0:00:00]}  Rc6 {[%clk 0:00:00]} 45. Kg4 {[%clk 0:00:00]}  Rc3 {[%clk 0:00:00]} 46. h5 {[%clk 0:00:00]}  Rc1 {[%clk 0:00:00]} 47. h6 {[%clk 0:00:00]}  Rg1+ {[%clk 0:00:00]} 48. Kh5 {[%clk 0:00:00]}  Rh1+ {[%clk 0:00:00]} 49. Kg6 {[%clk 0:00:00]}  a5 {[%clk 0:00:00]} 50. h7 {[%clk 0:00:00]}  Kf8 {[%clk 0:00:00]} 51. h8=Q+ {[%clk 0:00:00]}  Rxh8 {[%clk 0:00:00]} 52. Rb8# {[%clk 0:00:00]} 1-0


[Site "https://www.chess.com"]